bitfinex/quotes_ETHUSD_20250114
["timestamp","ask_amount","ask_price","bid_price","bid_amount"]
[1736887576683,3.10428,3221.4,3220.5,3.10501]
[1736887579337,0.823541,3222.1,3221.2,3.10442]
[1736887579595,0.823541,3222.1,3221.0,3.1046]
[1736887579596,6.43161005,3222.0,3221.0,3.1046]
[1736887579797,2.93516495,3221.4,3220.5,3.10502]
[1736887580002,2.93516495,3221.4,3220.3,0.7887]
[1736887580344,2.93516495,3221.7,3220.3,0.7887]
[1736887580549,2.93516495,3222.0,3220.7,3.1049]
[1736887580801,2.93516495,3221.7,3221.0,3.10461]
[1736887581100,2.93516495,3222.0,3220.5,3.0]
[1736887581278,2.93516495,3222.0,3221.4,3.10422]
[1736887581451,2.93516495,3222.3,3221.2,0.7887]
[1736887581843,2.93516495,3222.3,3221.3,3.10433]
[1736887582055,3.53900145,3222.3,3221.4,3.10416]
[1736887582263,6.64241145,3222.3,3221.4,3.10416]
[1736887583179,2.93516495,3222.0,3220.9,0.7887]
[1736887583405,0.55,3222.2,3221.3,3.10431]
[1736887583891,0.55,3222.2,3221.1,3.10448]
[1736887584046,6.03882495,3222.0,3221.1,3.10448]
[1736887584250,0.40890015,3222.1,3221.2,3.10442]
[1736887584446,3.53900145,3222.3,3221.0,0.60651862]
[1736887584693,3.0,3222.5,3221.2,3.10443]
[1736887584897,3.0,3222.5,3221.7,3.10393]
[1736887585591,3.1029,3222.8,3221.8,3.1038]
[1736887585791,6.65298,3222.7,3221.8,3.1038]
[1736887585994,7.63119449,3222.7,3221.8,3.1038]
[1736887586157,6.69937043,3223.1,3221.9,0.03103408]
[1736887586359,3.1027,3223.0,3222.0,3.10357]
[1736887586587,3.55,3222.9,3222.1,3.10354]
[1736887586788,3.65282,3222.9,3221.9,3.10372]
[1736887587207,3.65282,3222.9,3222.0,3.10363]
[1736887587208,3.10282,3222.9,3222.0,3.10363]
[1736887587530,0.55,3222.8,3221.7,0.7887]
[1736887587832,0.55,3222.8,3222.0,3.10364]
[1736887588051,2.93516495,3223.7,3222.5,3.10315]
[1736887588197,2.93516495,3223.7,3222.1,0.03103167]
[1736887588198,3.12916495,3223.7,3222.6,0.03102736]
[1736887588520,3.10221,3223.6,3222.6,3.10304]
[1736887588696,0.315721,3223.4,3222.7,3.10298]
[1736887590993,0.55,3223.3,3222.5,3.10312]
[1736887591434,0.55,3223.3,3222.4,0.7887]
[1736887591598,0.55,3223.3,3222.3,3.10332]
[1736887591933,3.4826786,3223.2,3222.2,0.63431164]
[1736887592133,3.4826786,3223.2,3222.2,3.73776164]
[1736887592632,3.65262,3223.1,3222.2,3.10345]
[1736887594123,3.48516495,3223.1,3221.8,0.7887]
[1736887594322,3.65293,3222.8,3221.8,3.10377]
[1736887594530,3.65293,3222.8,3221.7,0.61938812]
[1736887594531,0.55,3222.6,3221.7,0.61938812]
[1736887594745,3.468283,3222.7,3221.4,6.35890895]
[1736887594746,3.65337,3222.4,3221.4,6.35890895]
[1736887594951,6.03865495,3222.2,3221.4,3.25471895]
[1736887595149,6.03865495,3222.2,3221.2,3.10441]
[1736887595352,3.65331,3222.4,3221.4,3.10423]
[1736887595556,0.55,3222.2,3221.4,3.10423]
[1736887595748,3.48516495,3222.2,3221.2,3.10439]
[1736887596283,3.10364,3222.1,3221.2,3.10439]
[1736887596468,3.48516495,3222.2,3220.9,3.0]
[1736887596676,6.58865495,3222.2,3221.2,3.1044]
[1736887596966,0.72475025,3222.1,3221.2,3.1044]
[1736887597137,3.82833025,3222.1,3221.2,3.1044]
[1736887597337,3.82833025,3222.1,3220.9,3.0]
[1736887597338,3.10366,3222.0,3221.0,3.10457]
[1736887597536,3.10366,3222.0,3220.9,3.0]
[1736887597737,3.10366,3222.0,3221.1,3.1045]
[1736887597967,3.83501752,3222.0,3221.1,3.1045]
[1736887598173,0.73135752,3222.0,3221.1,3.10444]
[1736887598334,0.55,3222.1,3220.9,3.72254224]
[1736887598560,3.65394,3221.8,3220.9,3.10464]
[1736887599666,3.65394,3221.8,3220.9,3.007317]
[1736887599865,3.10397,3221.7,3220.8,0.62878299]
[1736887600066,0.365397,3221.6,3220.8,0.62878299]
[1736887600493,0.365397,3221.6,3220.8,3.73357299]
[1736887600883,0.55,3221.8,3220.8,3.73357299]
[1736887601514,0.55,3221.5,3220.4,4.04341895]
[1736887601719,2.93516495,3221.6,3220.4,3.25471895]
[1736887601720,3.65451,3221.2,3220.4,3.25471895]
[1736887602267,0.55,3221.0,3220.4,3.25471895]
[1736887602470,3.10453,3221.1,3220.1,3.25471895]
[1736887602471,2.93516495,3220.7,3220.1,3.25471895]
[1736887602700,2.93516495,3220.7,3219.9,0.6303331]
[1736887602872,2.93516495,3220.7,3219.8,6.36044895]
[1736887603276,0.55,3220.7,3219.9,3.10567]
[1736887603528,1.0070283,3220.7,3219.9,3.10567]
[1736887605416,1.0070283,3220.7,3219.8,0.63369156]
[1736887605721,3.10502,3220.6,3219.7,3.10585]
[1736887606024,0.55,3220.6,3219.7,3.10585]
[1736887606522,0.55,3220.6,3219.8,3.10578]
[1736887608920,0.55,3220.8,3219.9,3.10567]
[1736887609127,0.1659453,3220.7,3219.9,3.10567]
[1736887610480,0.1659453,3220.7,3219.6,3.63176356]
[1736887610481,0.55,3220.6,3219.7,3.10583]
[1736887610728,0.55,3220.6,3219.6,0.63176356]
[1736887610930,0.55,3220.4,3219.6,3.10596]
[1736887611298,0.55,3220.6,3219.7,3.10586]
[1736887611626,0.55,3220.4,3219.7,3.10586]
[1736887614778,3.10111025,3220.7,3219.9,3.10567]
[1736887616019,6.20603025,3220.7,3219.7,3.10579]
[1736887616180,6.20603025,3220.7,3219.8,3.10569]
[1736887623235,3.10507,3220.6,3219.7,3.10587]
[1736887623447,3.10507,3220.6,3219.5,0.61538556]
[1736887623448,3.48516495,3220.4,3219.5,0.61538556]
[1736887623583,2.93516495,3220.1,3219.3,3.10623]
[1736887623783,6.04066495,3220.1,3219.3,3.10623]
[1736887625099,0.55,3220.2,3219.3,3.10623]
[1736887626048,0.62061802,3220.5,3219.1,3.61638103]
[1736887626230,3.10517,3220.5,3219.5,3.10602]
[1736887626397,0.3599453,3220.7,3219.1,0.61638103]
[1736887626398,2.93516495,3220.3,3219.1,0.61638103]
[1736887626597,2.93516495,3219.7,3218.7,4.01891895]
[1736887626900,3.10601,3219.6,3218.7,3.87909868]
[1736887627113,3.10601,3219.6,3218.7,3.73120973]
[1736887627314,0.6041175,3219.5,3218.7,3.73120973]
[1736887627530,0.6041175,3219.5,3218.8,3.10673]
[1736887627697,2.93516495,3219.7,3218.8,3.10673]
[1736887627912,3.10599,3219.6,3218.7,0.62437973]
[1736887628116,2.93516495,3219.7,3218.7,3.73121973]
[1736887628349,3.10598,3219.6,3218.7,3.73121973]
[1736887628724,2.93516495,3219.4,3218.7,3.73121973]
[1736887628910,0.3485165,3219.3,3218.7,3.10684]
[1736887629236,3.10563,3220.0,3218.5,0.7642]
[1736887629237,2.93516495,3219.7,3218.6,0.63775708]
[1736887629836,2.93516495,3219.7,3219.0,3.10654]
[1736887630526,3.10569,3219.9,3219.0,3.10654]
[1736887630728,2.93516495,3220.0,3219.1,3.10638]
[1736887630913,3.53922945,3220.0,3218.7,0.7642]
[1736887631253,3.53922945,3220.0,3219.2,3.10627]
[1736887631254,2.93516495,3220.0,3219.2,3.10627]
[1736887631452,2.93516495,3220.0,3219.3,3.10626]
[1736887632356,3.55,3220.1,3218.7,0.7642]
[1736887632582,3.12916495,3220.2,3219.4,3.10616]
[1736887632707,2.93516495,3220.2,3219.4,3.10616]
[1736887633653,2.93516495,3220.2,3219.2,0.7642]
[1736887633654,6.04057495,3220.2,3219.2,3.87047]
[1736887633819,0.60405749,3220.1,3219.2,3.73928498]
[1736887634358,2.93516495,3219.9,3219.1,3.10641]
[1736887634915,2.93516495,3219.9,3219.2,3.10635]
[1736887635560,2.93516495,3219.9,3219.0,3.71581483]
[1736887635714,2.93516495,3219.9,3219.1,3.10642]
[1736887635914,3.59964819,3219.9,3219.1,3.10642]
[1736887636115,3.59964819,3219.9,3219.2,3.10634]
[1736887636362,3.59964819,3219.9,3218.1,12.12471895]
[1736887636363,2.93516495,3219.6,3218.6,0.7697]
[1736887636545,2.93516495,3219.6,3218.7,0.63730935]
[1736887637062,2.93516495,3219.6,3218.7,3.1068]
[1736887637228,6.04143495,3219.3,3218.3,0.7697]
[1736887637428,3.12716495,3219.6,3218.3,1.39935417]
[1736887637629,0.86271649,3219.5,3218.3,1.39935417]
[1736887637828,0.86271649,3219.5,3218.6,3.10693]
[1736887638054,0.192,3219.6,3218.3,1.39935417]
[1736887638256,0.192,3219.6,3219.0,3.10647]
[1736887639163,0.192,3219.6,3218.9,0.7697]
[1736887639164,3.29751,3220.1,3219.2,3.10632]
[1736887639370,2.93516495,3219.9,3218.9,0.7697]
[1736887639515,2.93516495,3219.9,3219.2,3.10635]
[1736887641063,3.29751,3220.1,3219.3,3.10625]
[1736887641064,0.192,3220.1,3219.3,3.10625]
[1736887641214,3.48516495,3220.2,3219.0,0.62693134]
[1736887641421,6.12716495,3220.4,3219.5,3.10605]
[1736887641756,0.9232305,3220.3,3219.5,3.10605]
[1736887642632,0.9232305,3220.3,3219.1,3.10642]
[1736887642633,2.93516495,3220.4,3219.7,3.10586]
[1736887642835,3.10111025,3220.7,3219.7,3.10586]
[1736887643014,3.10503,3220.6,3219.4,3.91863]
[1736887643757,3.10503,3220.6,3219.8,3.10577]
[1736887643959,3.72564403,3220.6,3219.8,3.10577]
[1736887644461,3.72564403,3220.6,3219.6,3.10592]
[1736887645264,3.72564403,3220.6,3219.7,3.10582]
[1736887645829,3.72564403,3220.6,3219.8,3.10577]
[1736887646425,0.25,3222.7,3219.6,1.43018758]
[1736887646664,0.25,3222.7,3220.2,3.91789]
[1736887646665,2.93516495,3222.0,3220.2,3.91789]
[1736887646836,3.10396,3221.7,3220.6,3.10492]
[1736887647035,0.310396,3221.6,3220.6,3.10492]
[1736887647367,0.55,3221.5,3220.6,3.10492]
[1736887647567,0.55,3221.5,3220.3,0.62726896]
[1736887647568,2.93516495,3221.3,3220.3,0.62726896]
[1736887648065,2.93516495,3221.0,3220.0,3.10559]
[1736887648273,2.93516495,3221.0,3220.1,3.10539]
[1736887648471,2.93516495,3221.0,3220.3,3.23394472]
[1736887648640,3.59412545,3221.0,3220.3,3.23394472]
[1736887649052,3.59412545,3221.0,3220.2,3.10534]
[1736887649274,0.6589605,3221.0,3220.3,3.10525]
[1736887649483,0.55,3221.2,3220.1,0.61582108]
[1736887649776,3.24556095,3221.6,3220.8,3.10478]
[1736887650089,3.0,3221.8,3220.9,3.10467]
[1736887650235,2.93516495,3222.2,3220.5,3.0]
[1736887650434,2.93516495,3222.2,3220.7,2.93516495]
[1736887650435,0.2935165,3222.1,3220.7,2.93516495]
[1736887650633,0.2935165,3222.1,3221.4,3.1042]
[1736887650946,0.2935165,3222.1,3221.3,3.1043]
[1736887651347,0.2935165,3222.1,3221.1,3.1045]
[1736887651555,3.3970865,3222.1,3221.1,3.1045]
[1736887651772,0.69557659,3222.0,3221.1,3.1045]
[1736887652376,3.0,3222.4,3221.2,0.0310394]
[1736887652580,3.0,3222.4,3221.4,3.1042]
[1736887653161,0.55,3222.3,3221.5,3.1041]
[1736887653356,0.55,3222.5,3221.5,3.1041]
[1736887653883,0.55,3222.5,3221.0,0.62673011]
[1736887653884,3.55,3222.4,3221.3,3.10425]
[1736887654039,0.665325,3222.3,3221.5,3.10411]
[1736887654240,5.79767936,3222.8,3221.2,3.10443]
[1736887654241,3.10297,3222.8,3221.2,3.10443]
[1736887654548,3.10297,3222.8,3221.0,4.18540947]
[1736887654549,3.29453,3223.2,3222.1,3.10355]
[1736887654752,3.10265,3223.1,3222.1,3.10355]
[1736887654953,0.329465,3223.0,3222.1,3.10355]
[1736887655533,3.329465,3223.0,3222.1,3.10355]
[1736887656682,0.329465,3223.0,3222.0,0.8125]
[1736887656870,3.0,3222.8,3221.9,3.10373]
[1736887657847,6.65273,3223.0,3222.0,3.10363]
[1736887658182,6.65273,3223.0,3221.8,0.6246444]
[1736887658183,3.0,3222.8,3221.8,3.7284644]
[1736887658476,3.0,3222.8,3222.0,3.10365]
[1736887658674,3.55,3223.0,3222.0,3.10365]
[1736887658881,0.71086794,3222.9,3221.8,3.7284444]
[1736887659179,3.10297,3222.8,3221.8,3.7284444]
[1736887659693,0.71086794,3222.9,3221.8,0.6246444]
[1736887659985,0.71086794,3222.9,3221.9,3.10375]
[1736887660360,3.0,3222.8,3221.9,3.10375]
[1736887660756,4.29504615,3222.8,3221.8,0.6246444]
[1736887660958,3.10308,3222.6,3221.7,0.8125]
[1736887661156,3.10336,3222.4,3221.4,4.42029405]
[1736887661369,0.55,3222.4,3221.4,3.8125]
[1736887661577,3.10341,3222.3,3221.4,3.8125]
[1736887661848,3.76961894,3222.3,3221.4,0.8125]
[1736887662049,3.76961894,3222.3,3221.4,3.91672]
[1736887662286,3.10341,3222.3,3221.4,3.91672]
[1736887662891,3.10354,3222.2,3221.2,3.10438]
[1736887663112,3.10366,3222.0,3221.1,0.8125]
[1736887663777,3.10366,3222.0,3221.0,3.10458]
[1736887663778,3.10376,3221.9,3221.0,3.10458]
[1736887663978,0.310376,3221.8,3221.0,3.10458]
[1736887664196,0.55,3221.7,3221.1,0.62700759]
[1736887664358,3.10402,3221.7,3221.1,0.62700759]
[1736887665492,3.10402,3221.7,3220.9,0.8125]
[1736887665993,3.10426,3221.4,3220.7,0.62955741]
[1736887666170,6.66279936,3221.6,3220.7,0.62955741]
[1736887666607,0.55,3221.4,3220.7,0.62955741]
[1736887666762,3.65443,3221.2,3220.3,3.10524]
[1736887666958,3.10453,3221.1,3220.2,0.61687049]
[1736887667190,6.97376236,3221.0,3220.2,0.61687049]
[1736887667402,3.10473,3220.9,3220.2,0.61687049]
[1736887667701,3.10473,3220.9,3220.1,0.7853]
[1736887668111,3.65487,3220.8,3219.8,3.89104]
[1736887668260,0.365487,3220.7,3219.8,3.89104]
[1736887668657,3.470407,3220.7,3219.8,3.89104]
[1736887668893,3.10502,3220.6,3219.6,3.10593]
[1736887669275,3.10502,3220.6,3219.5,0.7853]
[1736887669276,0.55,3220.6,3219.7,3.10584]
[1736887671033,3.1051,3220.5,3219.5,3.89134]
[1736887671326,3.92416636,3220.7,3219.5,3.89134]
[1736887671327,3.47072,3220.4,3219.5,3.89134]
[1736887671891,3.47072,3220.4,3219.5,0.7853]
[1736887672097,0.36551,3220.4,3219.5,0.7853]
[1736887672288,0.36551,3220.4,3219.6,3.10597]
[1736887672721,0.91551,3220.4,3219.7,3.10586]
[1736887673793,0.365487,3220.7,3219.8,0.03105626]
[1736887674132,0.310453,3221.0,3219.8,3.10578]
[1736887674331,0.310453,3221.0,3220.2,3.10537]
[1736887674637,0.310453,3221.0,3220.0,3.10556]
[1736887674638,3.0,3220.9,3220.0,3.10556]
[1736887674933,3.0,3220.9,3219.7,0.7853]
[1736887675144,3.0,3220.9,3220.1,3.10545]
[1736887675346,3.10447,3221.2,3219.7,0.7853]
[1736887675347,0.55,3221.1,3220.3,3.10528]
[1736887675546,6.04347433,3221.3,3220.3,3.89058]
[1736887675750,3.31311243,3221.2,3220.3,0.7853]
[1736887676049,3.31311243,3221.2,3219.7,3.89115]
[1736887676050,6.04413433,3220.7,3219.7,3.89115]
[1736887676415,2.93912433,3220.7,3219.8,3.10577]
[1736887676649,3.10475,3220.9,3220.0,3.10554]
[1736887676834,0.60438743,3220.9,3220.0,3.10554]
[1736887677243,0.60438743,3220.9,3219.7,0.7853]
[1736887677555,2.93912433,3221.0,3219.7,0.7853]
[1736887677556,2.93912433,3221.0,3219.9,3.10568]
[1736887677784,3.10483,3220.8,3219.9,3.10568]
[1736887677957,6.04378433,3221.0,3219.8,3.10578]
[1736887678152,6.04378433,3221.0,3219.9,3.1056]
[1736887678372,0.60437843,3220.9,3220.0,3.10557]
[1736887678789,3.70910843,3220.9,3220.0,3.10557]
[1736887679074,3.70910843,3220.9,3219.7,0.7853]
[1736887679377,3.10484,3220.8,3219.8,3.10575]
[1736887680346,0.55,3220.8,3219.9,3.10561]
[1736887681782,0.55,3220.8,3220.0,3.10558]
[1736887681960,2.93912433,3221.0,3219.7,0.7853]
[1736887682164,2.93912433,3221.0,3220.2,3.10535]
[1736887682982,2.93912433,3221.0,3219.7,0.7853]
[1736887682983,3.10482,3220.8,3219.7,0.7853]
[1736887683184,3.0,3221.2,3219.7,3.7853]
[1736887683388,3.10427,3221.4,3220.4,0.8049]
[1736887683551,3.10427,3221.4,3220.4,3.91002]
[1736887684080,2.93912433,3221.6,3220.4,3.91002]
[1736887684081,6.04318433,3221.6,3220.6,3.10498]
[1736887684273,3.10417,3221.5,3220.6,3.10498]
[1736887685292,3.10417,3221.5,3220.4,0.8049]
[1736887685293,2.93912433,3221.6,3220.4,0.8049]
[1736887685507,3.13112433,3221.9,3220.8,3.10477]
[1736887685708,3.25223676,3221.9,3220.8,3.10477]
[1736887686149,3.25223676,3221.9,3220.5,3.1051]
[1736887686330,6.35603676,3221.9,3220.5,3.1051]
[1736887686491,6.35603676,3221.9,3220.8,3.10472]
[1736887686696,3.72708434,3222.4,3220.8,3.10472]
[1736887686697,0.1532332,3222.5,3221.3,3.10426]
[1736887686951,2.93912433,3222.9,3221.4,0.83593941]
[1736887687130,3.10273,3223.0,3221.5,2.93912433]
[1736887687336,3.0,3222.9,3222.0,3.10365]
[1736887687671,2.93912433,3223.1,3222.1,3.13458184]
[1736887687826,3.62336643,3223.0,3222.2,3.10345]
[1736887688030,0.62336643,3223.0,3222.0,3.90852]
[1736887688198,3.10243,3223.3,3222.0,0.8049]
[1736887688405,3.10243,3223.3,3222.2,3.10339]
[1736887688706,0.55,3223.2,3222.2,3.10339]
[1736887689302,2.94412433,3223.4,3222.6,3.10307]
[1736887689303,0.005,3223.4,3222.6,3.10307]
[1736887689757,0.005,3223.4,3222.8,3.10284]
[1736887689906,0.005,3223.4,3222.9,3.10275]
[1736887690747,0.005,3223.4,3222.7,0.8049]
[1736887691100,0.005,3223.4,3222.9,3.10278]
[1736887692046,0.005,3223.4,3223.0,3.10269]
[1736887692246,0.005,3223.4,3222.7,0.83592385]
[1736887692546,0.005,3223.4,3223.2,0.8049]
[1736887692754,0.005,3223.4,3223.3,0.03102031]
[1736887692899,0.005,3223.4,3223.2,0.8049]
[1736887695910,0.005,3223.4,3223.3,3.10241]
[1736887696098,0.005,3223.4,3223.3,3.1334297]
[1736887696339,0.005,3223.4,3223.3,3.10241]
[1736887696934,0.005,3223.4,3223.3,3.13342779]
[1736887697318,0.005,3223.4,3223.3,3.10241]
[1736887700378,0.005,3223.4,3222.9,3.10276]
[1736887700581,0.005,3223.4,3223.0,3.10266]
[1736887700786,0.005,3223.4,3222.8,4.53094072]
[1736887702023,0.005,3223.4,3222.4,3.89929]
[1736887702024,3.10731,3223.4,3222.4,3.89929]
[1736887702224,0.005,3223.4,3222.6,0.61997874]
[1736887702726,0.005,3223.4,3222.7,3.10298]
[1736887703030,0.005,3223.4,3222.6,0.61997874]
[1736887703181,0.005,3223.4,3222.6,3.72302874]
[1736887703819,0.005,3223.4,3222.6,0.61997874]
[1736887704715,0.005,3223.4,3222.8,3.10287]
[1736887706894,0.005,3223.4,3222.6,0.61997874]
[1736887707227,0.31073,3223.3,3222.6,0.61997874]
[1736887707639,0.31073,3223.3,3222.6,3.72303874]
[1736887708425,0.005,3223.4,3222.6,0.61997874]
[1736887708736,0.005,3223.4,3222.8,3.10288]
[1736887709115,0.005,3223.4,3222.9,0.03102564]
[1736887709312,0.005,3223.4,3222.6,3.72299874]
[1736887709513,0.005,3223.4,3222.7,0.03102383]
[1736887709723,0.005,3223.4,3222.8,3.10289]
[1736887709928,0.005,3223.4,3222.7,3.10298]
[1736887710316,0.005,3223.4,3223.1,3.10259]
[1736887711011,0.005,3223.4,3222.9,3.10276]
[1736887711254,0.005,3223.4,3222.8,0.7961]
[1736887711457,0.005,3223.4,3222.6,0.61997874]
[1736887711754,0.005,3223.4,3222.3,3.10332]
[1736887711755,3.1025,3223.2,3222.3,3.10332]
[1736887711930,0.31025,3223.1,3222.3,3.10332]
[1736887712131,0.005,3223.4,3222.3,3.71050892]
[1736887712132,3.10243,3223.3,3222.3,3.71050892]
[1736887712327,3.10251,3223.2,3222.3,0.60718892]
[1736887712534,0.55,3223.2,3222.3,0.60718892]
[1736887712861,0.55,3223.2,3222.1,3.10351]
[1736887713068,0.55,3223.2,3221.9,3.10375]
[1736887713216,0.55,3222.8,3221.9,3.10375]
[1736887713412,0.55,3222.8,3221.8,0.7961]
[1736887713413,0.55,3222.8,3222.2,0.61129154]
[1736887713616,3.76117903,3223.1,3221.8,3.7961]
[1736887713617,3.6527,3223.0,3221.8,3.7961]
[1736887713870,0.65853903,3223.1,3221.8,0.7961]
[1736887714162,3.10254,3223.2,3222.2,3.10339]
[1736887714813,0.55,3223.1,3222.2,3.10339]
[1736887715019,3.65265,3223.1,3222.2,3.10339]
[1736887715932,0.55,3222.8,3222.1,0.62695612]
[1736887716639,3.10279,3222.9,3222.1,0.62695612]
[1736887716867,0.860279,3222.8,3222.1,0.62695612]
[1736887717433,3.963199,3222.8,3222.1,0.62695612]
[1736887717732,3.65292,3222.8,3221.9,3.10366]
[1736887717969,3.65292,3222.8,3222.0,0.62711748]
[1736887718851,3.65292,3222.8,3221.9,3.10366]
[1736887719234,3.10292,3222.8,3221.9,3.71063612]
[1736887719547,3.70650503,3222.8,3221.9,3.71063612]
[1736887721639,0.60358503,3222.8,3222.0,3.10364]
[1736887721858,3.65275,3223.0,3222.0,3.10364]
[1736887722173,0.55,3223.1,3221.9,0.60697612]
[1736887722346,2.93293028,3223.0,3221.9,0.60697612]
[1736887722555,3.65279,3222.9,3221.7,3.0]
[1736887722750,3.1031,3222.6,3221.7,3.0]
[1736887723496,3.1031,3222.6,3221.7,6.10391]
[1736887723697,0.55,3222.7,3221.8,3.10383]
[1736887723894,0.55,3222.7,3221.9,0.60787872]
[1736887724073,3.10294,3222.8,3221.9,3.71161872]
[1736887724269,0.310294,3222.8,3221.9,0.60787872]
[1736887724594,3.10284,3222.9,3222.0,3.91145]
[1736887725006,3.10255,3223.2,3222.0,3.91145]
[1736887725007,3.10265,3223.1,3222.1,3.10353]
[1736887725175,3.10265,3223.1,3222.0,0.8078]
[1736887725176,3.10265,3223.1,3222.2,3.10346]
[1736887725713,0.55,3223.0,3222.3,3.10334]
[1736887725998,3.10733,3223.4,3222.5,0.8078]
[1736887726204,3.0,3223.2,3222.5,3.91097]
[1736887726399,3.10253,3223.2,3222.5,0.8078]
[1736887726704,3.10277,3223.0,3222.2,0.8087]
[1736887727007,0.55,3223.0,3221.9,1.41657872]
[1736887727190,0.55,3223.0,3222.1,3.10348]
[1736887727506,0.665265,3222.9,3222.1,3.10348]
[1736887728062,0.665265,3222.9,3221.9,1.41657872]
[1736887728264,3.768145,3222.9,3221.9,4.52027872]
[1736887728764,3.768145,3222.9,3222.0,3.10364]
[1736887729204,3.10293,3222.8,3221.9,1.41657872]
[1736887729363,0.3768195,3222.7,3221.9,1.41657872]
[1736887730194,0.665265,3222.9,3221.9,3.91241]
[1736887730408,3.768125,3222.9,3221.9,3.91241]
[1736887731226,3.0,3223.1,3222.3,3.10332]
[1736887731425,3.0,3223.2,3222.4,3.10322]
[1736887732191,3.0,3223.2,3222.5,3.10316]
[1736887732397,0.005,3223.4,3222.6,3.10305]
[1736887732632,0.005,3223.4,3222.8,0.8087]
[1736887733154,0.005,3223.4,3222.9,3.10272]
[1736887733440,0.005,3223.4,3222.8,0.8087]
[1736887733641,0.005,3223.4,3222.5,3.10314]
[1736887733828,3.10739,3223.4,3222.5,3.91184]
[1736887733998,0.005,3223.4,3222.5,0.8087]
[1736887734196,0.005,3223.4,3222.7,3.10298]
[1736887734396,0.005,3223.4,3223.0,3.10261]
[1736887734601,0.005,3223.4,3222.9,0.8087]
[1736887734903,3.10732,3223.4,3222.4,7.11450176]
[1736887735105,3.473052,3223.4,3222.5,3.1031]
[1736887735495,3.473052,3223.4,3222.1,7.11478176]
[1736887735496,3.10262,3223.1,3222.1,7.11478176]
[1736887735700,3.10262,3223.1,3222.2,3.20257176]
[1736887736099,3.10262,3223.1,3222.1,0.8087]
[1736887736321,3.10262,3223.1,3222.2,3.10346]
[1736887736541,3.412882,3223.1,3222.2,3.10346]
[1736887736718,3.1027,3223.0,3222.1,0.8087]
[1736887737021,3.24319228,3223.1,3222.1,0.8087]
[1736887737227,0.55,3222.9,3222.1,0.8087]
[1736887737421,0.55,3223.0,3222.1,0.8087]
[1736887737598,3.48213923,3222.9,3222.1,0.8087]
[1736887738414,0.37931923,3222.9,3222.1,0.8087]
[1736887738602,3.412902,3223.1,3222.1,0.8087]
[1736887739115,0.310262,3223.1,3222.3,3.10327]
[1736887739311,6.10243,3223.3,3222.4,3.10327]
[1736887740222,6.10243,3223.3,3222.1,0.8087]
[1736887740223,3.10267,3223.1,3222.2,3.10341]
[1736887740638,3.10267,3223.1,3222.3,3.10337]
[1736887741203,3.10267,3223.1,3222.1,3.91219]
[1736887741425,6.10244,3223.3,3222.3,3.10329]
[1736887741742,4.23346103,3223.3,3222.3,3.10329]
[1736887742236,3.10252,3223.2,3222.3,3.10329]
[1736887742396,3.10262,3223.1,3222.3,3.10329]
[1736887742941,0.55,3223.0,3221.8,3.20257176]
[1736887743102,2.93293028,3223.1,3221.8,0.7763]
[1736887743301,3.10259,3223.2,3222.2,3.10345]
[1736887743503,0.005,3223.4,3222.7,3.10298]
[1736887743703,0.005,3223.4,3222.9,3.10277]
[1736887744003,0.005,3223.4,3223.0,3.87899]
[1736887744714,0.005,3223.4,3222.6,3.10304]
[1736887744903,3.10734,3223.4,3222.6,3.10307]
[1736887745105,0.370734,3223.4,3222.6,3.10307]
[1736887745375,0.370734,3223.4,3222.5,3.0]
[1736887745376,0.005,3223.4,3222.5,3.0]
[1736887745542,0.005,3223.4,3222.7,3.10294]
[1736887746245,0.005,3223.4,3222.5,3.10314]
[1736887746405,3.10733,3223.4,3222.4,3.7763]
[1736887746610,0.005,3223.4,3222.6,3.10308]
[1736887747530,3.10734,3223.4,3222.5,3.10311]
[1736887747710,3.473058,3223.4,3222.5,3.10311]
[1736887747910,0.370718,3223.4,3222.6,3.10306]
[1736887748346,0.370718,3223.4,3222.4,0.7763]
[1736887748347,0.005,3223.4,3222.4,0.7763]
[1736887748511,0.005,3223.4,3222.8,3.10287]
[1736887749511,0.005,3223.4,3222.9,3.10278]
[1736887749745,0.005,3223.4,3222.4,0.7763]
[1736887749955,0.005,3223.4,3223.1,0.7763]
[1736887750250,0.005,3223.4,3223.3,3.10241]
[1736887750456,0.005,3223.4,3223.1,0.7763]
[1736887750755,0.005,3223.4,3222.9,3.10276]
[1736887751088,0.005,3223.4,3222.7,3.87925]
[1736887753468,0.55,3223.3,3222.5,3.10312]
[1736887753655,0.315715,3223.4,3222.4,4.61453134]
[1736887753835,0.315715,3223.4,3222.6,3.10307]
[1736887754235,0.005,3223.4,3222.8,3.10288]
[1736887754466,0.005,3223.4,3222.9,3.10271]
[1736887754868,0.005,3223.4,3222.7,3.10291]
[1736887755033,3.10731,3223.4,3222.5,3.10318]
[1736887755773,3.10261,3223.1,3222.3,3.10335]
[1736887755934,3.10736,3223.4,3222.4,3.1032]
[1736887756143,0.60902903,3223.4,3222.6,3.10303]
[1736887756339,0.005,3223.4,3222.6,3.10303]
[1736887756522,0.005,3223.4,3222.7,3.10291]
[1736887757142,3.65733,3223.4,3222.4,3.1032]
[1736887757503,0.005,3223.4,3222.3,3.10337]
[1736887757658,0.005,3223.4,3222.2,3.97887176]
[1736887757972,3.10254,3223.2,3222.3,3.10333]
[1736887758173,3.10254,3223.2,3222.2,3.97887176]
[1736887758174,3.1027,3223.0,3222.2,3.20257176]
[1736887758477,3.1027,3223.0,3222.1,6.10353]
[1736887758973,3.48293028,3223.2,3222.1,3.0]
[1736887759180,6.58551028,3223.2,3222.2,3.10342]
[1736887759486,7.61417461,3223.2,3222.2,3.10342]